bitfinex-derivatives/quotes_BTCF0:USTF0_20210703
["timestamp","ask_amount","ask_price","bid_price","bid_amount"]
[1625314617135,0.118,34573.0,34572.0,0.9906]
[1625314621546,0.059,34573.0,34572.0,0.9906]
[1625314621645,0.118,34573.0,34572.0,0.9906]
[1625314622248,0.059,34573.0,34572.0,0.9906]
[1625314622346,0.72172632,34574.0,34572.0,0.9906]
[1625314622498,1.01635102,34578.0,34572.0,0.9906]
[1625314622645,1.01635102,34578.0,34577.0,0.48115088]
[1625314622750,1.01635102,34578.0,34577.0,0.79307088]
[1625314622945,0.24057544,34579.0,34577.0,0.79307088]
[1625314623095,0.29957544,34579.0,34577.0,0.79307088]
[1625314623196,0.35857544,34579.0,34577.0,0.79307088]
[1625314623447,0.29957544,34579.0,34577.0,0.79307088]
[1625314623547,0.35857544,34579.0,34577.0,0.79307088]
[1625314623650,0.29957544,34579.0,34577.0,0.79307088]
[1625314623850,0.35857544,34579.0,34577.0,0.79307088]
[1625314624002,0.29957544,34579.0,34577.0,0.79307088]
[1625314624501,0.35857544,34579.0,34577.0,0.79307088]
[1625314625254,0.29957544,34579.0,34577.0,0.79307088]
[1625314625353,0.24057544,34579.0,34577.0,0.79307088]
[1625314625453,0.35857544,34579.0,34577.0,0.79307088]
[1625314625703,0.35857544,34579.0,34577.0,0.48115088]
[1625314626306,0.0875,34578.0,34577.0,0.48115088]
[1625314626410,0.48593,34578.0,34577.0,0.48115088]
[1625314627911,4.04191926,34578.0,34577.0,0.48115088]
[1625314628519,4.04191926,34578.0,34572.0,0.9906]
[1625314628617,4.54191926,34578.0,34572.0,0.6826]
[1625314628725,0.059,34572.0,34561.0,0.8639]
[1625314628863,0.5,34572.0,34561.0,0.8639]
[1625314629013,0.5,34572.0,34556.0,2.8929]
[1625314629014,0.059,34561.0,34556.0,2.8929]
[1625314629215,0.4302,34561.0,34556.0,2.8929]
[1625314629365,0.3712,34561.0,34556.0,2.8929]
[1625314629462,0.4302,34561.0,34556.0,2.8929]
[1625314629712,0.4302,34561.0,34556.0,2.6]
[1625314629815,1.01654378,34558.0,34556.0,2.6]
[1625314629915,1.13454378,34558.0,34556.0,2.6]
[1625314630115,1.13454378,34558.0,34556.0,2.384]
[1625314630319,0.118,34558.0,34556.0,2.384]
[1625314630716,0.48115088,34557.0,34556.0,2.384]
[1625314630868,0.54015088,34557.0,34556.0,2.384]
[1625314630968,0.59915088,34557.0,34556.0,2.384]
[1625314631576,0.54015088,34557.0,34556.0,2.384]
[1625314631818,0.59915088,34557.0,34556.0,2.384]
[1625314631917,0.54015088,34557.0,34556.0,2.384]
[1625314632228,0.59915088,34557.0,34556.0,2.384]
[1625314632718,0.59915088,34557.0,34556.0,2.62457544]
[1625314633320,0.54015088,34557.0,34556.0,2.62457544]
[1625314633424,0.59915088,34557.0,34556.0,2.62457544]
[1625314633525,0.54015088,34557.0,34556.0,2.62457544]
[1625314633624,0.59915088,34557.0,34556.0,2.62457544]
[1625314638437,0.59915088,34557.0,34556.0,2.91425544]
[1625314638582,0.24057544,34557.0,34556.0,2.91425544]
[1625314638783,0.24057544,34557.0,34556.0,3.15483088]
[1625314639685,0.29957544,34557.0,34556.0,3.15483088]
[1625314639785,0.24057544,34557.0,34556.0,3.15483088]
[1625314640488,0.29957544,34557.0,34556.0,3.15483088]
[1625314640888,0.35857544,34557.0,34556.0,3.15483088]
[1625314640991,0.29957544,34557.0,34556.0,3.15483088]
[1625314641589,0.35857544,34557.0,34556.0,3.15483088]
[1625314641692,0.35857544,34557.0,34556.0,2.86515088]
[1625314642044,0.41557544,34557.0,34556.0,2.86515088]
[1625314642342,0.35857544,34557.0,34556.0,2.86515088]
[1625314642491,0.41557544,34557.0,34556.0,2.86515088]
[1625314642595,0.35857544,34557.0,34556.0,2.86515088]
[1625314643143,0.29957544,34557.0,34556.0,2.86515088]
[1625314643695,0.35857544,34557.0,34556.0,2.86515088]
[1625314643945,0.29957544,34557.0,34556.0,2.86515088]
[1625314644300,0.35857544,34557.0,34556.0,2.86515088]
[1625314644397,0.059,34557.0,34556.0,2.86515088]
[1625314644506,0.059,34557.0,34556.0,2.92415088]
[1625314644947,0.059,34557.0,34556.0,2.86515088]
[1625314645299,0.24057544,34567.0,34556.0,2.86515088]
[1625314645400,0.35857544,34567.0,34556.0,2.86515088]
[1625314646753,0.35857544,34567.0,34566.0,0.48115088]
[1625314646855,0.41557544,34567.0,34566.0,0.48115088]
[1625314646961,0.50257544,34567.0,34566.0,0.24057544]
[1625314647608,4.05393053,34567.0,34566.0,0.24057544]
[1625314649009,4.05393053,34567.0,34556.0,1.52515088]
[1625314649109,4.24810053,34567.0,34556.0,1.52515088]
[1625314649209,1.01519068,34561.0,34556.0,1.52515088]
[1625314649358,0.057,34560.0,34556.0,1.52515088]
[1625314649459,0.116,34560.0,34556.0,1.52515088]
[1625314649559,0.175,34560.0,34556.0,2.86515088]
[1625314650812,0.29757544,34557.0,34556.0,2.86515088]
[1625314650964,0.35857544,34557.0,34556.0,2.86515088]
[1625314652219,0.41557544,34557.0,34556.0,2.86515088]
[1625314653571,1.50267544,34557.0,34556.0,2.86515088]
[1625314653673,1.67635544,34557.0,34556.0,2.86515088]
[1625314654474,1.61935544,34557.0,34556.0,2.86515088]
[1625314654624,1.67635544,34557.0,34556.0,2.86515088]
[1625314655125,1.61935544,34557.0,34556.0,2.86515088]
[1625314655477,1.67635544,34557.0,34556.0,2.86515088]
[1625314655578,1.61935544,34557.0,34556.0,2.86515088]
[1625314656682,1.67635544,34557.0,34556.0,2.86515088]
[1625314657285,1.68880521,34557.0,34556.0,2.87042216]
[1625314657785,2.70613437,34557.0,34556.0,2.87042216]
[1625314659940,2.64913437,34557.0,34556.0,2.87042216]
[1625314660041,2.64913437,34557.0,34556.0,3.18447216]
[1625314660140,2.6366846,34557.0,34556.0,3.18447216]
[1625314660241,2.3169046,34557.0,34556.0,3.18447216]
[1625314660343,1.29957544,34557.0,34556.0,3.18447216]
[1625314660592,1.0,34557.0,34556.0,3.18447216]
[1625314660742,1.1822525,34561.0,34556.0,3.18447216]
[1625314660842,1.00698219,34562.0,34560.0,0.48115088]
[1625314661244,1.00698219,34562.0,34561.0,0.00527001]
[1625314661445,1.00831891,34566.0,34561.0,0.00527001]
[1625314661542,1.06731891,34566.0,34561.0,0.00527001]
[1625314661842,1.06731891,34566.0,34561.0,0.06427001]
[1625314662244,1.06731891,34566.0,34561.0,0.00527001]
[1625314662344,1.06731891,34566.0,34562.0,0.00526962]
[1625314662793,1.06731891,34566.0,34565.0,0.48115088]
[1625314662894,1.06731891,34566.0,34565.0,0.76959088]
[1625314663045,0.059,34566.0,34565.0,0.76959088]
[1625314663195,0.059,34566.0,34565.0,0.77485899]
[1625314663396,0.118,34566.0,34565.0,0.77485899]
[1625314663947,0.175,34566.0,34565.0,0.77485899]
[1625314664048,1.18331746,34566.0,34565.0,0.77485899]
[1625314664250,1.18331746,34566.0,34565.0,0.76959088]
[1625314664500,1.19576932,34566.0,34565.0,0.76959088]
[1625314664650,2.37110833,34566.0,34565.0,0.48115088]
[1625314664899,2.61168377,34566.0,34565.0,0.48115088]
[1625314665202,3.89715186,34566.0,34565.0,0.48115088]
[1625314665301,3.95415186,34566.0,34565.0,0.48115088]
[1625314666808,3.95415186,34566.0,34565.0,0.74414088]
[1625314667408,3.89715186,34566.0,34565.0,0.74414088]
[1625314667810,3.83815186,34566.0,34565.0,0.74414088]
[1625314667912,3.89715186,34566.0,34565.0,0.74414088]
[1625314668010,3.59757642,34566.0,34565.0,0.74414088]
[1625314668262,2.24265647,34566.0,34565.0,0.74940933]
[1625314668462,2.30165647,34566.0,34565.0,0.74940933]
[1625314668819,2.30165647,34566.0,34565.0,0.74414088]
[1625314669222,3.6442274,34566.0,34565.0,0.74414088]
[1625314669721,3.5852274,34566.0,34565.0,0.74414088]
[1625314669821,3.6422274,34566.0,34565.0,0.74414088]
[1625314670071,3.7012274,34566.0,34565.0,0.74414088]
[1625314672025,3.7012274,34566.0,34565.0,0.48115088]
[1625314672227,3.71367952,34566.0,34565.0,0.48115088]
[1625314672878,5.22809572,34566.0,34565.0,0.48115088]
[1625314672980,5.46867116,34566.0,34565.0,0.48115088]
[1625314673077,5.41167116,34566.0,34565.0,0.48115088]
[1625314673177,5.46867116,34566.0,34565.0,0.48115088]
[1625314673778,5.41167116,34566.0,34565.0,0.48115088]
[1625314674131,5.46867116,34566.0,34565.0,0.48115088]
[1625314676536,5.55597116,34566.0,34565.0,0.48115088]
[1625314679895,5.49897116,34566.0,34565.0,0.48115088]
[1625314679995,5.49897116,34566.0,34565.0,0.73369088]
[1625314679996,5.41167116,34566.0,34565.0,0.73369088]
[1625314680097,5.35267116,34566.0,34565.0,0.73369088]
[1625314680247,5.17109572,34566.0,34565.0,0.73369088]
[1625314680346,5.0996436,34566.0,34565.0,0.73369088]
[1625314680648,5.1586436,34566.0,34565.0,0.73369088]
[1625314680998,3.6442274,34566.0,34565.0,0.73369088]
[1625314681148,3.5852274,34566.0,34565.0,0.73369088]
[1625314681298,3.6442274,34566.0,34565.0,0.73369088]
[1625314681401,3.5852274,34566.0,34565.0,0.73895904]
[1625314681550,3.6442274,34566.0,34565.0,0.73895904]
[1625314681851,3.5852274,34566.0,34565.0,0.73895904]
[1625314682553,3.6442274,34566.0,34565.0,0.73895904]
[1625314682805,3.5852274,34566.0,34565.0,0.73895904]
[1625314683655,4.26185768,34566.0,34565.0,0.73895904]
[1625314683904,2.26065768,34566.0,34565.0,0.73895904]
[1625314684054,1.38170228,34567.0,34565.0,0.79795904]
[1625314684155,1.69132203,34572.0,34565.0,0.85695904]
[1625314684313,2.70584467,34591.0,34565.0,1.53944855]
[1625314684314,1.91749528,34579.0,34565.0,1.53944855]
[1625314684406,1.50924463,34573.0,34566.0,0.00526935]
[1625314684506,1.50924463,34573.0,34566.0,0.06426935]
[1625314684606,1.50924463,34573.0,34566.0,0.12326935]
[1625314684708,1.50924463,34573.0,34566.0,0.06426935]
[1625314684906,1.50924463,34573.0,34567.0,0.00526935]
[1625314685006,1.50924463,34573.0,34572.0,0.378271]
[1625314685106,1.50924463,34573.0,34572.0,0.582501]
[1625314685207,0.24057544,34575.0,34572.0,0.582501]
[1625314685558,0.24057544,34579.0,34573.0,0.00526924]
[1625314686260,0.01244376,34578.0,34573.0,0.00526924]
[1625314687061,1.67870994,34584.0,34577.0,0.24057544]
[1625314687212,0.29957544,34583.0,34577.0,0.24057544]
[1625314687367,0.01244352,34582.0,34577.0,0.24057544]
[1625314687462,0.07144352,34582.0,34577.0,0.24057544]
[1625314687863,0.059,34582.0,34577.0,0.24057544]
[1625314689015,0.059,34582.0,34581.0,0.48115088]
[1625314689166,0.059,34582.0,34581.0,0.78240088]
[1625314689566,1.92036667,34587.0,34581.0,0.78240088]
[1625314689667,1.73879123,34587.0,34581.0,0.90040088]
[1625314689816,1.67979123,34587.0,34581.0,0.90040088]
[1625314690117,1.68030327,34590.0,34581.0,0.90040088]
[1625314690569,0.24057544,34592.0,34581.0,0.90040088]
[1625314691168,0.24057544,34592.0,34591.0,0.48115088]
[1625314691269,0.24057544,34592.0,34591.0,0.72053088]
[1625314691370,0.24057544,34592.0,34591.0,0.77953088]
[1625314691569,0.24057544,34592.0,34591.0,0.72053088]
[1625314691670,0.24057544,34592.0,34591.0,0.77953088]
[1625314691819,0.24057544,34595.0,34591.0,0.77953088]
[1625314691921,0.29957544,34595.0,34591.0,0.77953088]
[1625314693223,0.24057544,34595.0,34592.0,0.24057544]
[1625314693325,1.67759997,34597.0,34592.0,0.29957544]
[1625314693428,1.67568968,34598.0,34592.0,0.29957544]
[1625314693625,1.73468968,34598.0,34592.0,0.29957544]
[1625314693925,0.059,34598.0,34592.0,0.29957544]
[1625314694226,1.67732639,34600.0,34592.0,0.29957544]
[1625314694326,1.67732639,34600.0,34592.0,0.35857544]
[1625314694727,1.6762534,34601.0,34592.0,0.35857544]
[1625314695178,0.24057544,34603.0,34598.0,0.24057544]
[1625314695179,1.67416848,34602.0,34598.0,0.24057544]
[1625314695329,1.67416848,34602.0,34598.0,0.57250544]
[1625314695628,1.91479045,34603.0,34598.0,0.57250544]
[1625314695928,0.057,34602.0,34598.0,0.57250544]
[1625314696129,0.057,34602.0,34598.0,0.51350544]
[1625314696529,0.29957544,34599.0,34598.0,0.51350544]
[1625314696631,1.80315472,34599.0,34598.0,0.51350544]
[1625314698831,1.80315472,34599.0,34598.0,0.24057544]
[1625314699182,3.19502933,34599.0,34598.0,0.24057544]
[1625314699331,3.25202933,34599.0,34598.0,0.24057544]
[1625314699583,3.25202933,34599.0,34597.0,0.24057544]
[1625314700232,3.19302933,34599.0,34597.0,0.24057544]
[1625314700689,2.82725225,34598.0,34597.0,0.24057544]
[1625314700788,2.88425225,34598.0,34597.0,0.24057544]
[1625314700887,2.94325225,34598.0,34597.0,0.24057544]
[1625314701087,3.00225225,34598.0,34597.0,0.24057544]
[1625314702493,3.00225225,34598.0,34592.0,0.24057544]
[1625314702695,2.82363853,34593.0,34591.0,0.24057544]
[1625314702793,3.01434853,34593.0,34591.0,0.24057544]
[1625314702894,0.057,34592.0,34591.0,0.24057544]
[1625314702993,0.175,34592.0,34591.0,0.24057544]
[1625314703096,2.99647622,34592.0,34591.0,0.24057544]
[1625314703194,3.4776271,34592.0,34586.0,0.24057544]
[1625314703646,1.32767139,34587.0,34586.0,0.24057544]
[1625314703745,1.38667139,34587.0,34586.0,0.24057544]
[1625314703947,1.32767139,34587.0,34586.0,0.24057544]
[1625314704097,1.38667139,34587.0,34586.0,0.24057544]
[1625314704196,1.32767139,34587.0,34586.0,0.24057544]
[1625314704346,2.48875368,34587.0,34586.0,0.24057544]
[1625314704547,2.54775368,34587.0,34586.0,0.24057544]
[1625314704899,2.48875368,34587.0,34586.0,0.24057544]
[1625314705153,2.54775368,34587.0,34586.0,0.24057544]
[1625314705248,2.72932912,34587.0,34586.0,0.24057544]
[1625314705699,2.78832912,34587.0,34586.0,0.24057544]
[1625314705949,2.72932912,34587.0,34586.0,0.24057544]
[1625314706200,2.78832912,34587.0,34586.0,0.24057544]
[1625314706349,2.72932912,34587.0,34586.0,0.24057544]
[1625314707503,2.78832912,34587.0,34586.0,0.24057544]
[1625314707650,2.72932912,34587.0,34586.0,0.24057544]
[1625314707750,2.78832912,34587.0,34586.0,0.24057544]
[1625314707850,2.72932912,34587.0,34586.0,0.24057544]
[1625314709004,2.72932912,34587.0,34586.0,0.53467544]
[1625314709856,0.24057544,34587.0,34586.0,0.53467544]
[1625314710958,1.16222776,34591.0,34586.0,0.53467544]
[1625314711259,1.16222776,34591.0,34590.0,0.24057544]
[1625314711360,1.64348295,34592.0,34590.0,0.29957544]
[1625314711809,0.48115088,34592.0,34590.0,0.29957544]
[1625314712610,0.4986162,34591.0,34590.0,0.29957544]
[1625314713959,0.4986162,34591.0,34590.0,0.35857544]
[1625314715165,0.49818189,34592.0,34590.0,0.35857544]
[1625314715261,0.49818189,34592.0,34591.0,0.24057544]
[1625314715361,0.49818189,34592.0,34591.0,0.29957544]
[1625314715461,0.49818189,34592.0,34591.0,0.35857544]
[1625314715663,0.49818189,34592.0,34591.0,0.29957544]
[1625314716013,0.49843264,34593.0,34591.0,0.29957544]
[1625314716466,0.49863886,34592.0,34591.0,0.29957544]
[1625314717617,0.33285222,34592.0,34591.0,0.29957544]
[1625314718069,0.83226489,34592.0,34591.0,0.29957544]
[1625314719223,0.49941267,34592.0,34591.0,0.29957544]
[1625314719672,0.49941267,34592.0,34591.0,0.30484604]
[1625314719773,0.83273251,34592.0,34591.0,0.30484604]
[1625314719973,0.83273251,34592.0,34591.0,0.29957544]
[1625314720174,0.49941267,34592.0,34591.0,0.29957544]
[1625314720625,1.49903008,34592.0,34591.0,0.29957544]
[1625314721578,0.49941267,34592.0,34591.0,0.29957544]
[1625314723030,1.49915235,34592.0,34591.0,0.29957544]
[1625314723482,1.49915235,34592.0,34591.0,0.24057544]
[1625314723632,1.51158272,34592.0,34591.0,0.24057544]
[1625314723732,1.51158272,34592.0,34591.0,0.29957544]
[1625314723931,2.66401273,34592.0,34591.0,0.29957544]
[1625314724333,2.66401273,34592.0,34591.0,0.24057544]
[1625314724334,1.49915235,34592.0,34591.0,0.24057544]
[1625314724635,1.49915235,34592.0,34591.0,0.29957544]
[1625314725187,1.49915235,34592.0,34591.0,0.24057544]
[1625314725289,1.49915235,34592.0,34591.0,0.29957544]
[1625314725386,1.49915235,34592.0,34591.0,0.24057544]
[1625314725588,1.49915235,34592.0,34591.0,0.29957544]
[1625314725840,1.49915235,34592.0,34591.0,0.24057544]
[1625314726038,1.49915235,34592.0,34591.0,0.29957544]
[1625314726139,1.49915235,34592.0,34591.0,0.24057544]
[1625314726239,1.49915235,34592.0,34591.0,0.29957544]
[1625314726750,1.49915235,34592.0,34591.0,0.24057544]
[1625314726840,1.49915235,34592.0,34591.0,0.29957544]
[1625314727392,2.66650893,34592.0,34591.0,0.29957544]
[1625314727491,2.66650893,34592.0,34591.0,0.24057544]
[1625314727794,2.72350893,34592.0,34591.0,0.24057544]
[1625314727892,2.73593911,34592.0,34591.0,0.24057544]
[1625314728192,2.67893911,34592.0,34591.0,0.24057544]
[1625314728594,2.67893911,34592.0,34591.0,0.29957544]
[1625314728696,2.66650893,34592.0,34591.0,0.29957544]
[1625314728845,2.66650893,34592.0,34591.0,0.24057544]
[1625314728944,2.66650893,34592.0,34591.0,0.29957544]
[1625314730600,1.49915235,34592.0,34591.0,0.29957544]
[1625314733909,2.6648409,34592.0,34591.0,0.29957544]
[1625314734609,2.67727098,34592.0,34591.0,0.29957544]
[1625314735109,4.00753256,34592.0,34591.0,0.29957544]
[1625314735259,3.99510248,34592.0,34591.0,0.29957544]
[1625314735510,2.6648409,34592.0,34591.0,0.29957544]
[1625314736210,2.6648409,34592.0,34591.0,0.30484594]
[1625314736512,2.6648409,34592.0,34591.0,0.29957544]
[1625314736762,2.67727064,34592.0,34591.0,0.30484602]
[1625314737517,4.00971872,34592.0,34591.0,0.30484602]
[1625314739974,4.00971872,34592.0,34591.0,0.58483602]
[1625314741477,4.06671872,34592.0,34591.0,0.58483602]
[1625314741577,4.06671872,34592.0,34591.0,0.24584602]
[1625314741678,4.12571872,34592.0,34591.0,0.24584602]
[1625314741777,4.43297872,34592.0,34591.0,0.24584602]
[1625314741978,5.92645278,34592.0,34591.0,0.24584602]
[1625314742077,5.92645278,34592.0,34591.0,0.24057544]
[1625314743279,7.58912155,34592.0,34591.0,0.24057544]
[1625314743483,7.86397356,34592.0,34591.0,0.24057544]
[1625314744485,8.52950135,34592.0,34591.0,0.24057544]
[1625314745133,8.58850135,34592.0,34591.0,0.24057544]
[1625314745533,8.82907679,34592.0,34586.0,0.24057544]
[1625314745836,0.04670926,34591.0,34587.0,0.00527253]
[1625314745939,1.66479705,34589.0,34587.0,0.00527253]
[1625314746037,0.057,34588.0,34587.0,0.00527253]
[1625314746137,0.057,34588.0,34586.0,0.24057544]
[1625314746286,6.21678571,34588.0,34586.0,0.24057544]
[1625314746386,6.22921655,34588.0,34586.0,0.24057544]
[1625314746588,0.01243084,34587.0,34586.0,0.24057544]
[1625314746688,6.1722354,34587.0,34586.0,0.24057544]
[1625314746788,6.2292354,34587.0,34586.0,0.24057544]
[1625314747540,6.46981084,34587.0,34586.0,0.24057544]
[1625314747889,6.52881084,34587.0,34586.0,0.24057544]
[1625314748141,6.58781084,34587.0,34586.0,0.24057544]
[1625314748240,8.25294014,34587.0,34586.0,0.24057544]
[1625314748388,8.34034014,34587.0,34586.0,0.24057544]
[1625314751145,8.34034014,34587.0,34580.0,0.24057544]
[1625314751446,0.01243238,34586.0,34580.0,0.24057544]
[1625314751550,0.24057544,34581.0,34580.0,0.24057544]
[1625314751697,6.50886375,34581.0,34580.0,0.24057544]
[1625314751796,6.56786375,34581.0,34580.0,0.24057544]
[1625314752047,6.5802963,34581.0,34580.0,0.24057544]
[1625314752297,6.50886375,34581.0,34580.0,0.24057544]
[1625314752397,6.56786375,34581.0,34580.0,0.24057544]
[1625314752648,6.50886375,34581.0,34580.0,0.24057544]
[1625314756306,6.44986375,34581.0,34580.0,0.24057544]
[1625314757156,6.50886375,34581.0,34580.0,0.24057544]
[1625314757607,6.50886375,34581.0,34580.0,0.29957544]
[1625314757807,6.44986375,34581.0,34580.0,0.24057544]
[1625314757907,6.44986375,34581.0,34580.0,0.29957544]
[1625314758106,6.44986375,34581.0,34580.0,0.24057544]
[1625314758656,6.50886375,34581.0,34580.0,0.24057544]
[1625314759208,5.01243757,34581.0,34580.0,0.24057544]
[1625314760161,5.01243757,34581.0,34580.0,0.29957544]
[1625314760260,5.01243757,34581.0,34580.0,0.24057544]
[1625314760558,5.01243757,34581.0,34580.0,0.29957544]
[1625314760659,5.01243757,34581.0,34580.0,0.24057544]
[1625314760963,0.057,34581.0,34580.0,0.35857544]
[1625314761069,0.057,34583.0,34580.0,0.35857544]
[1625314761167,0.24057544,34584.0,34580.0,0.35857544]
[1625314761317,3.32035455,34581.0,34580.0,0.35857544]
[1625314761564,3.32035455,34581.0,34580.0,0.59915088]
[1625314761765,1.16222368,34581.0,34580.0,1.79315448]
[1625314762415,1.16222368,34581.0,34580.0,1.79842583]
[1625314762868,0.83061126,34581.0,34580.0,2.82181797]
[1625314763217,0.49881396,34581.0,34580.0,2.82181797]
[1625314765168,0.83117863,34581.0,34580.0,2.82181797]
[1625314767424,0.49868694,34581.0,34580.0,2.82181797]
[1625314768229,1.16253356,34581.0,34580.0,2.82181797]
[1625314768832,1.16253356,34581.0,34580.0,1.79842583]
[1625314770133,2.1578416,34581.0,34580.0,1.11613806]
[1625314770787,2.1578416,34581.0,34580.0,2.82213027]
[1625314770788,1.16253356,34581.0,34580.0,2.82213027]
[1625314771134,0.49868694,34581.0,34580.0,2.82213027]
[1625314771534,0.82951939,34581.0,34580.0,2.82213027]
[1625314772036,0.49868694,34581.0,34580.0,2.82213027]
[1625314772487,0.82924932,34581.0,34580.0,2.82213027]
[1625314773239,0.49517167,34581.0,34580.0,2.82213027]
[1625314773991,0.16460929,34581.0,34580.0,2.82213027]
[1625314774090,0.49321745,34582.0,34580.0,2.82213027]
[1625314774341,0.49321745,34582.0,34581.0,0.00526898]
[1625314774490,0.49321745,34582.0,34581.0,0.29377898]
[1625314774592,0.57545746,34582.0,34581.0,2.57055847]
[1625314775193,0.24665704,34583.0,34581.0,3.76472306]
[1625314775641,0.24665704,34583.0,34582.0,0.24584385]
[1625314775744,0.57542452,34585.0,34582.0,3.65762532]
[1625314775842,0.57542452,34585.0,34582.0,3.77562532]
[1625314776194,0.24692595,34586.0,34584.0,3.41174771]
[1625314776492,0.24692595,34586.0,34584.0,3.52974771]
[1625314776691,0.24692595,34586.0,34585.0,0.00526825]
[1625314776793,0.24692595,34586.0,34585.0,0.12326825]
[1625314776895,0.08236345,34586.0,34585.0,2.34083986]
[1625314777195,0.49346571,34587.0,34585.0,2.34083986]
[1625314777196,0.24682026,34587.0,34585.0,3.53483688]
[1625314777693,0.24682026,34587.0,34586.0,2.75763992]
[1625314777793,0.24682026,34587.0,34586.0,2.82190755]
[1625314779098,0.2452006,34588.0,34586.0,2.82190755]
[1625314779348,0.2452006,34588.0,34587.0,0.00526743]
[1625314779548,0.2452006,34588.0,34587.0,2.34056912]
[1625314779647,0.2452006,34588.0,34587.0,2.58114456]
[1625314779997,0.08178795,34588.0,34587.0,2.58114456]
[1625314780449,0.24502435,34588.0,34587.0,2.58114456]
[1625314780852,0.08178795,34588.0,34587.0,2.58114456]
[1625314781454,0.57200424,34589.0,34587.0,2.58114456]
[1625314781754,0.57200424,34589.0,34588.0,0.00526717]
[1625314781854,0.57200424,34589.0,34588.0,0.26099717]
[1625314781957,0.24565696,34590.0,34588.0,2.53696477]
[1625314782308,0.24565696,34590.0,34589.0,0.00526702]
[1625314782407,0.24565696,34590.0,34589.0,0.06426702]
[1625314782507,0.57299551,34590.0,34589.0,2.34020541]
[1625314783661,0.24565696,34590.0,34589.0,2.58078085]
[1625314784562,0.08194017,34590.0,34589.0,2.58078085]
[1625314784862,0.57344001,34591.0,34589.0,2.58078085]
[1625314785213,0.57344001,34591.0,34590.0,0.00526971]
[1625314785364,0.24595756,34591.0,34590.0,1.25748609]
[1625314785464,0.24595756,34591.0,34590.0,1.31648609]
[1625314787822,0.56793648,34593.0,34590.0,1.31648609]
[1625314788121,0.56793648,34593.0,34591.0,0.00526967]
[1625314788222,0.56793648,34593.0,34591.0,0.06426967]
[1625314788322,0.56793648,34593.0,34591.0,0.12326967]
[1625314788472,0.24351716,34593.0,34592.0,0.51123945]
[1625314788573,0.24351716,34593.0,34592.0,0.57023945]
[1625314788672,0.24351716,34593.0,34592.0,0.63450863]
[1625314788772,0.00161716,34593.0,34592.0,0.63450863]
[1625314789174,0.48558034,34597.0,34592.0,2.33846155]
[1625314789523,0.48558034,34597.0,34593.0,0.06426912]
[1625314789623,0.48558034,34597.0,34593.0,0.12326912]
[1625314789725,0.48558034,34597.0,34596.0,0.72172632]
[1625314789830,0.0582217,44688.0,34596.0,1.04070632]
[1625314789924,0.057,34611.0,34596.0,1.04070632]
[1625314790024,0.057,34611.0,34596.0,1.04597537]
[1625314790225,0.057,34611.0,34596.0,1.04070632]
[1625314790327,0.057,34606.0,34596.0,1.04070632]
[1625314790526,0.057,34606.0,34597.0,0.00526909]
[1625314790627,0.057,34606.0,34597.0,0.12326909]
[1625314791078,0.057,34606.0,34597.0,0.118]
[1625314791331,0.29757544,34604.0,34598.0,0.0052692]
[1625314791582,0.29757544,34604.0,34598.0,0.118]
[1625314791732,0.29757544,34604.0,34603.0,0.48115088]
[1625314791832,0.29757544,34604.0,34603.0,0.72684088]
[1625314791935,0.24057544,34604.0,34603.0,0.78584088]
[1625314792537,0.24057544,34604.0,34603.0,0.72684088]
[1625314792636,4.78773564,34604.0,34603.0,0.72684088]
[1625314792836,4.78773564,34604.0,34603.0,0.78584088]
[1625314792990,4.78773564,34604.0,34603.0,0.72684088]
[1625314793091,4.84473564,34604.0,34603.0,0.72684088]
[1625314795600,4.98973564,34604.0,34603.0,0.24057544]
[1625314796797,6.44500813,34604.0,34603.0,0.24057544]
[1625314796897,6.64131813,34604.0,34603.0,0.24057544]
[1625314798149,5.18604564,34604.0,34603.0,0.24057544]
[1625314798301,4.98973564,34604.0,34603.0,0.24057544]
[1625314800552,5.00214602,34604.0,34603.0,0.24057544]
[1625314802555,5.00214602,34604.0,34603.0,0.29957544]
[1625314802709,5.00214602,34604.0,34603.0,0.24057544]
[1625314802857,5.00214602,34604.0,34603.0,0.29957544]
[1625314802957,5.00214602,34604.0,34603.0,0.24057544]
[1625314803057,5.00214602,34604.0,34603.0,0.29957544]
[1625314803158,5.00214602,34604.0,34603.0,0.24057544]
[1625314804510,5.00214602,34604.0,34603.0,0.29957544]
[1625314804810,5.00214602,34604.0,34603.0,0.24057544]
[1625314805060,5.00214602,34604.0,34603.0,0.29957544]
[1625314805360,5.00214602,34604.0,34603.0,0.24057544]
[1625314805461,5.00214602,34604.0,34603.0,0.29957544]
[1625314805762,5.00214602,34604.0,34603.0,0.24057544]
[1625314805862,5.00214602,34604.0,34603.0,0.29957544]
[1625314805963,5.00214602,34604.0,34603.0,0.24057544]
[1625314806113,5.00214602,34604.0,34603.0,0.29957544]
[1625314806213,5.00214602,34604.0,34603.0,0.24057544]
[1625314806765,5.00214602,34604.0,34603.0,0.29957544]
[1625314807064,5.00214602,34604.0,34603.0,0.24057544]
[1625314807216,5.00214602,34604.0,34603.0,0.29957544]
[1625314807466,5.00214602,34604.0,34603.0,0.24057544]
[1625314807720,4.94314602,34604.0,34603.0,0.29957544]
[1625314807820,4.85714602,34604.0,34603.0,0.29957544]
[1625314808019,3.55802698,34604.0,34603.0,0.29957544]
[1625314808118,3.55802698,34604.0,34603.0,0.52060544]
[1625314809875,3.50102698,34604.0,34603.0,0.52060544]
[1625314810475,3.50102698,34604.0,34603.0,0.52588019]
[1625314810976,2.36427752,34604.0,34603.0,0.52588019]
[1625314811728,2.36427752,34604.0,34603.0,0.30485019]
[1625314811830,2.36427752,34604.0,34603.0,0.24057544]
[1625314811928,2.48027752,34604.0,34603.0,0.24057544]
[1625314812183,2.56577752,34604.0,34603.0,0.24057544]
[1625314812282,4.99127013,34604.0,34603.0,0.24057544]
[1625314815137,4.90577013,34604.0,34603.0,0.24057544]
[1625314816138,4.99247013,34604.0,34603.0,0.24057544]
[1625314817241,6.45668955,34604.0,34603.0,0.24057544]
[1625314822806,6.45668955,34604.0,34596.0,0.48115088]
[1625314823007,6.54995686,34604.0,34593.0,0.34115942]
[1625314823106,6.54995686,34604.0,34593.0,0.40015942]
[1625314823360,0.33155452,34603.0,34594.0,0.00527917]
[1625314823457,0.057,34602.0,34594.0,0.00527917]
[1625314823558,0.057,34602.0,34593.0,0.00527954]
[1625314823656,0.175,34602.0,34593.0,0.00527954]
[1625314823760,4.93272844,34594.0,34593.0,0.00527954]
[1625314823856,5.05072844,34594.0,34590.0,0.24057544]
[1625314823957,0.53815088,34591.0,34590.0,0.24057544]
[1625314824063,0.65615088,34591.0,34590.0,0.24057544]
[1625314824208,5.22198949,34591.0,34590.0,0.24057544]
[1625314824408,5.23439807,34591.0,34590.0,0.24585561]
[1625314824659,5.23439807,34591.0,34590.0,0.24057544]
[1625314824910,5.22198949,34591.0,34590.0,0.24057544]
[1625314825160,5.23439791,34591.0,34590.0,0.24057544]
[1625314825710,5.17539791,34591.0,34590.0,0.24057544]
[1625314825963,5.16298949,34591.0,34590.0,0.24057544]